bitfinex-derivatives/quotes_BTCF0:USTF0_20250309
["timestamp","ask_amount","ask_price","bid_price","bid_amount"]
[1741552898355,0.60645604,83289.0,83279.0,0.3608]
[1741552898555,0.60645604,83289.0,83288.0,0.1200869]
[1741552898950,0.60645604,83289.0,83288.0,0.0524615]
[1741552899146,0.58218599,83289.0,83288.0,0.0524615]
[1741552899655,0.57092,83289.0,83288.0,0.0524615]
[1741552900554,0.38882,83289.0,83288.0,0.1466615]
[1741552900863,0.38882,83289.0,83288.0,0.3270615]
[1741552900864,0.21152,83289.0,83288.0,0.3270615]
[1741552901458,0.21152,83289.0,83288.0,0.6878615]
[1741552901654,0.21152,83289.0,83271.0,0.3608]
[1741552901852,0.21152,83289.0,83288.0,0.1200869]
[1741552903054,0.21152,83289.0,83288.0,0.2120869]
[1741552905252,0.21152,83289.0,83288.0,0.1200869]
[1741552909256,0.21152,83289.0,83287.0,0.0915]
[1741552909457,0.21152,83289.0,83286.0,0.4208442]
[1741552909659,0.29872,83289.0,83286.0,0.4208442]
[1741552909865,0.29872,83289.0,83288.0,0.1200869]
[1741552910363,0.29872,83289.0,83288.0,0.05741282]
[1741552911259,0.29872,83289.0,83286.0,0.3608]
[1741552911561,0.29872,83289.0,83288.0,0.1200869]
[1741552917862,0.29872,83289.0,83286.0,0.4219642]
[1741552918054,0.0965,83288.0,83286.0,0.3608]
[1741552918466,0.0965,83288.0,83286.0,0.4808897]
[1741552919066,0.0965,83288.0,83286.0,0.3608]
[1741552919269,0.0965,83288.0,83287.0,0.1200883]
[1741552919664,0.0965,83288.0,83286.0,0.36192]
[1741552919863,0.0965,83288.0,83287.0,0.05246727]
[1741552920063,0.0965,83288.0,83286.0,0.3608]
[1741552920262,0.0965,83288.0,83287.0,0.1200883]
[1741552921868,0.1853,83288.0,83287.0,0.1200883]
[1741552922062,0.1853,83288.0,83287.0,0.4808883]
[1741552924475,0.1853,83288.0,83287.0,0.6411]
[1741552924672,0.1853,83288.0,83287.0,0.7611883]
[1741552927083,0.01308704,83308.0,83299.0,0.0600351]
[1741552927378,0.46755099,83326.0,83325.0,0.1200336]
[1741552927564,0.46691099,83326.0,83325.0,0.4808336]
[1741552927971,0.48001796,83326.0,83325.0,0.4808336]
[1741552928971,0.42696079,83326.0,83325.0,0.6308336]
[1741552929171,1e-08,83326.0,83325.0,0.6308336]
[1741552929467,1e-08,83326.0,83325.0,0.8106336]
[1741552929977,0.00018007,83334.0,83333.0,0.120022]
[1741552930175,0.00018007,83334.0,83333.0,0.567942]
[1741552930676,0.08712,83347.0,83338.0,0.1200148]
[1741552930875,0.12917712,83349.0,83340.0,0.060006]
[1741552931173,0.270809,83346.0,83345.0,0.120001]
[1741552931373,0.0908,83346.0,83345.0,0.120001]
[1741552931873,0.0908,83346.0,83345.0,0.05242709]
[1741552932369,0.1863,83346.0,83345.0,0.001]
[1741552932676,0.1863,83346.0,83345.0,0.1210048]
[1741552932875,0.1863,83346.0,83345.0,0.1200048]
[1741552933074,0.1863,83346.0,83345.0,0.1210048]
[1741552933375,0.1200103,83342.0,83337.0,0.00018007]
[1741552933563,0.55995105,83346.0,83337.0,0.06018807]
[1741552933564,0.36232,83341.0,83337.0,0.06018807]
[1741552933764,0.36232,83341.0,83340.0,0.120012]
[1741552933969,0.1832,83341.0,83340.0,0.120012]
[1741552934174,0.005,83346.0,83345.0,0.1200048]
[1741552934367,0.005,83346.0,83345.0,0.4808048]
[1741552934978,0.005,83346.0,83345.0,0.5782048]
[1741552935669,0.011,83346.0,83345.0,0.5792048]
[1741552936070,0.011,83346.0,83345.0,0.5802048]
[1741552936274,0.009,83346.0,83345.0,0.5802048]
[1741552936873,0.21170007,83354.0,83353.0,0.1199932]
[1741552936874,0.00018007,83354.0,83353.0,0.1199932]
[1741552937075,0.00060001,83363.0,83357.0,0.1199875]
[1741552937376,0.00068,83380.0,83378.0,0.1199573]
[1741552937565,0.21148,83383.0,83380.0,0.0599766]
[1741552937766,0.21148,83383.0,83382.0,0.1199515]
[1741552937966,0.22429951,83383.0,83382.0,0.1199515]
[1741552938175,0.22429951,83383.0,83382.0,0.3058515]
[1741552938480,0.21148,83383.0,83382.0,0.3058515]
[1741552938869,0.21148,83383.0,83382.0,0.3068515]
[1741552939071,0.0932,83389.0,83382.0,0.3068515]
[1741552939274,0.0934,83388.0,83386.0,0.0599723]
[1741552939472,0.0934,83388.0,83387.0,0.2149443]
[1741552939668,0.0934,83388.0,83382.0,0.2118515]
[1741552939669,0.46704321,83388.0,83382.0,0.001]
[1741552939873,0.1199501,83383.0,83382.0,0.1209515]
[1741552940069,0.1199501,83383.0,83382.0,0.001]
[1741552940275,0.2069901,83383.0,83382.0,0.002]
[1741552940875,0.08704,83383.0,83382.0,0.002]
[1741552941177,0.2069901,83383.0,83382.0,0.002]
[1741552941376,0.17834,83383.0,83382.0,0.001]
[1741552942073,0.17934,83383.0,83382.0,0.001]
[1741552942277,0.17934,83383.0,83382.0,0.002]
[1741552942580,0.17934,83383.0,83382.0,0.1219395]
[1741552943377,0.17934,83383.0,83382.0,0.002]
[1741552943981,0.17934,83383.0,83382.0,0.1219395]
[1741552944371,0.17934,83383.0,83382.0,0.002]
[1741552944678,0.17934,83383.0,83382.0,0.1219395]
[1741552945077,0.17934,83383.0,83382.0,0.4827395]
[1741552945375,0.17934,83383.0,83382.0,0.5785395]
[1741552946178,0.21144,83385.0,83384.0,0.1199366]
[1741552946480,0.00017997,83391.0,83390.0,0.119928]
[1741552947075,0.00017997,83391.0,83390.0,0.216928]
[1741552947578,7e-08,83391.0,83390.0,0.727728]
[1741552948873,7e-08,83391.0,83390.0,0.728728]
[1741552949172,7e-08,83391.0,83390.0,0.729728]
[1741552949581,7e-08,83400.0,83399.0,0.1199151]
[1741552949878,7e-08,83400.0,83399.0,0.5677151]
[1741552950072,7e-08,83400.0,83399.0,0.7177151]
[1741552951780,7e-08,83400.0,83399.0,0.5697151]
[1741552952679,7e-08,83400.0,83399.0,0.57855575]
[1741552954483,7e-08,83400.0,83399.0,0.4827151]
[1741552954690,7e-08,83400.0,83399.0,0.5696751]
[1741552954993,0.13316898,83400.0,83399.0,0.3628]
[1741552955389,0.01325538,83400.0,83399.0,0.3628]
[1741552955688,0.01325538,83400.0,83399.0,0.4827151]
[1741552956189,0.20125538,83400.0,83399.0,0.4827151]
[1741552956593,0.20125538,83400.0,83399.0,0.3628]
[1741552956891,0.28821538,83400.0,83399.0,0.4827151]
[1741552957288,0.28821538,83400.0,83399.0,0.3628]
[1741552957494,0.28821538,83400.0,83399.0,0.4827151]
[1741552958784,0.20125538,83400.0,83399.0,0.5797151]
[1741552958989,0.18800007,83400.0,83399.0,0.5797151]
[1741552959182,0.00017997,83408.0,83407.0,0.1199036]
[1741552959391,0.00017997,83408.0,83407.0,0.4807036]
[1741552959986,0.00017997,83408.0,83407.0,0.6683036]
[1741552960591,0.00017997,83408.0,83407.0,0.6693036]
[1741552960998,0.00017997,83408.0,83407.0,0.6703036]
[1741552962202,0.00017997,83408.0,83407.0,0.4827036]
[1741552962395,0.00017997,83408.0,83407.0,0.1219036]
[1741552962799,0.00017997,83408.0,83407.0,0.4827036]
[1741552965188,0.00017997,83408.0,83407.0,0.1219036]
[1741552966002,0.08709997,83408.0,83407.0,0.1219036]
[1741552966497,0.08709997,83408.0,83407.0,0.4827036]
[1741552968400,0.00017997,83408.0,83407.0,0.4827036]
[1741552969000,0.00017997,83408.0,83407.0,0.6796036]
[1741552969590,0.00017997,83408.0,83407.0,0.6786036]
[1741552969796,0.00017997,83408.0,83407.0,0.6796036]
[1741552971106,0.00017997,83408.0,83407.0,0.6786036]
[1741552971309,0.00017997,83408.0,83407.0,0.6796036]
[1741552971908,7e-08,83408.0,83407.0,0.6796036]
[1741552974703,0.1866,83411.0,83407.0,0.3628]
[1741552974704,0.18656007,83411.0,83407.0,0.3628]
[1741552974907,0.18656007,83411.0,83407.0,0.4827028]
[1741552975103,0.18656007,83411.0,83410.0,0.1198992]
[1741552976605,0.18656007,83411.0,83410.0,0.001]
[1741552976908,0.18656007,83411.0,83410.0,0.1208992]
[1741552977409,0.18656007,83411.0,83410.0,0.1218992]
[1741552980209,0.18656007,83411.0,83410.0,0.2239992]
[1741552980503,0.21124,83444.0,83410.0,0.1041]
[1741552980709,0.0599286,83440.0,83435.0,0.3608]
[1741552980905,0.0599296,83438.0,83427.0,0.08688]
[1741552981303,0.28570545,83437.0,83436.0,0.1198619]
[1741552981502,0.20853645,83439.0,83432.0,0.0599337]
[1741552981704,0.1198719,83429.0,83428.0,0.00017985]
[1741552981899,0.1188719,83429.0,83428.0,0.00017985]
[1741552982506,0.2057519,83429.0,83428.0,0.00017985]
[1741552982711,0.2047519,83429.0,83428.0,0.00017985]
[1741552983410,0.2047519,83429.0,83428.0,0.00117985]
[1741552983612,0.3067519,83429.0,83428.0,0.00117985]
[1741552984303,0.3057519,83429.0,83428.0,0.00117985]
[1741552985109,0.3067519,83429.0,83428.0,0.00217985]
[1741552985511,0.4059519,83429.0,83428.0,0.00217985]
[1741552986007,0.28908,83429.0,83428.0,0.00217985]
[1741552986308,0.2022,83429.0,83428.0,0.12205325]
[1741552986608,0.001,83429.0,83428.0,0.48285325]
[1741552987306,0.001,83429.0,83428.0,0.68255325]
[1741552987712,0.001,83429.0,83428.0,0.76943325]
[1741552990914,0.28478,83437.0,83436.0,0.1198619]
[1741552991610,0.28478,83437.0,83436.0,0.3161619]
[1741552992114,0.28478,83437.0,83436.0,0.3171619]
[1741552992515,0.1979,83437.0,83436.0,0.3171619]
[1741552993206,0.1979,83437.0,83436.0,0.1973]
[1741552993418,0.1979,83437.0,83436.0,0.3171619]
[1741552994010,0.1979,83437.0,83436.0,0.3181619]
[1741552994317,0.1999,83437.0,83436.0,0.3181619]
[1741552994708,0.1999,83437.0,83436.0,0.002]
[1741552995006,0.3197604,83437.0,83436.0,0.002]
[1741552995210,0.1999,83437.0,83436.0,0.002]
[1741552995815,0.3197604,83437.0,83436.0,0.002]
[1741552996115,0.1999,83437.0,83436.0,0.1218619]
[1741552996318,0.002,83437.0,83436.0,0.3207619]
[1741552996509,0.2067,83437.0,83436.0,0.3207619]
[1741552998218,0.20677705,83437.0,83436.0,0.3207619]
[1741552998418,0.20677705,83437.0,83436.0,0.3197619]
[1741552998715,0.20677705,83437.0,83436.0,0.3207619]
[1741552998911,0.00207705,83437.0,83436.0,0.3207619]
[1741552999110,7.705e-05,83437.0,83436.0,0.3197619]
[1741552999311,0.00207705,83437.0,83436.0,0.3207619]
[1741552999509,0.10097705,83437.0,83436.0,0.3207619]
[1741552999712,0.20227705,83437.0,83436.0,0.3207619]
[1741553000113,0.00207705,83437.0,83436.0,0.3207619]
[1741553000316,5e-08,83437.0,83436.0,0.3207619]
[1741553001013,0.2012,83454.0,83436.0,0.1999]
[1741553001208,0.2012,83454.0,83444.0,0.4806504]
[1741553001408,0.2012,83454.0,83444.0,0.5674904]
[1741553001409,0.01349436,83451.0,83444.0,0.5674904]
[1741553001607,0.1963,83450.0,83444.0,0.5674904]
[1741553001812,0.1963,83450.0,83444.0,0.7625904]
[1741553002806,0.00211735,83445.0,83444.0,0.7625904]
[1741553004617,0.11996635,83445.0,83444.0,0.3608]
[1741553004921,0.00011735,83445.0,83444.0,0.3608]
[1741553005417,0.11996635,83445.0,83444.0,0.29430882]
[1741553005616,0.41816635,83445.0,83444.0,0.29530882]
[1741553005921,0.0599287,83440.0,83435.0,0.3608]
[1741553006117,0.28284,83439.0,83436.0,0.1198609]
[1741553006514,0.1198676,83432.0,83423.0,0.36368]
[1741553006710,0.1198676,83432.0,83423.0,0.1198805]
[1741553006711,0.1198742,83428.0,83423.0,0.1198805]
[1741553006912,0.196,83427.0,83420.0,0.1198835]
[1741553007116,0.08684,83426.0,83418.0,0.2013]
[1741553007511,0.08684,83426.0,83422.0,0.119881]
[1741553007512,0.1971,83425.0,83422.0,0.119881]
[1741553007719,0.1971,83425.0,83418.0,0.2013]
[1741553007913,0.21053777,83425.0,83424.0,0.1198791]
[1741553008114,0.21053777,83425.0,83422.0,0.0599403]
[1741553008314,0.1198791,83424.0,83419.0,0.1198849]
[1741553008513,0.1198791,83424.0,83420.0,0.1198844]
[1741553008714,0.1198835,83421.0,83416.0,0.2237894]
[1741553008920,0.18934,83420.0,83416.0,0.1039]
[1741553009115,0.28454,83420.0,83419.0,0.1198863]
[1741553009521,0.28454,83420.0,83418.0,0.119887]
[1741553010020,0.28454,83420.0,83416.0,0.2638452]
[1741553010229,0.28454,83420.0,83419.0,0.1198863]
[1741553010715,0.29154,83420.0,83419.0,0.1208863]
[1741553010915,0.29854,83420.0,83419.0,0.3230863]
[1741553011514,0.4184249,83420.0,83419.0,0.001]
[1741553011715,0.4184249,83420.0,83419.0,0.002]
[1741553012221,0.4174249,83420.0,83419.0,0.001]
[1741553012416,0.4174249,83420.0,83416.0,0.001]
[1741553012417,0.1198892,83417.0,83416.0,0.001]
[1741553012619,0.29614001,83420.0,83416.0,0.001]
[1741553012814,0.4796901,83417.0,83415.0,0.00017985]
[1741553013018,0.206,83416.0,83411.0,0.12169474]
[1741553013229,0.3092,83416.0,83411.0,0.00179824]
[1741553013523,0.3092,83416.0,83392.0,0.4207621]
[1741553013723,0.3608,83403.0,83393.0,0.1006]
[1741553013934,0.3608,83403.0,83394.0,0.1199217]
[1741553013935,0.65262085,83402.0,83394.0,0.1199217]
[1741553014116,0.1199144,83400.0,83394.0,0.1199217]
[1741553014321,0.2038,83399.0,83398.0,0.1199165]
[1741553014521,0.2038,83399.0,83393.0,0.1966]
[1741553014718,0.2038,83399.0,83393.0,0.316523]
[1741553015027,0.33691071,83399.0,83393.0,0.4364457]
[1741553015228,0.33691071,83399.0,83394.0,0.1199216]
[1741553015428,0.21699481,83399.0,83393.0,0.1966]
[1741553015728,0.3608,83396.0,83390.0,0.00017985]
[1741553016025,0.1199266,83391.0,83390.0,0.00017985]
[1741553016232,0.29094,83395.0,83394.0,0.1199222]
[1741553018127,0.29794,83395.0,83394.0,0.05338978]
[1741553018328,0.29794,83395.0,83394.0,0.001]
[1741553018528,0.7786608,83395.0,83394.0,0.001]
[1741553021237,0.1199241,83393.0,83390.0,0.00017985]
[1741553021433,0.1199266,83391.0,83390.0,0.00017985]
[1741553022037,0.3179266,83391.0,83390.0,0.00017985]
[1741553022437,0.198,83391.0,83390.0,0.12010785]
[1741553023037,0.205,83391.0,83390.0,0.12010785]
[1741553023335,0.205,83391.0,83390.0,0.00017985]
[1741553024135,0.205,83391.0,83390.0,0.12010785]
[1741553024335,0.205,83391.0,83390.0,0.00017985]
[1741553025439,0.205,83391.0,83390.0,0.12010785]
[1741553025838,0.198,83391.0,83390.0,0.12010785]
[1741553026039,0.205,83391.0,83390.0,0.21970785]
[1741553027039,0.09384,83391.0,83390.0,0.21970785]
[1741553027225,0.007,83391.0,83390.0,0.21970785]
[1741553027932,0.007,83391.0,83390.0,0.09977985]
[1741553028241,0.007,83391.0,83390.0,0.21970785]
[1741553028631,0.2061,83394.0,83390.0,0.09977985]
[1741553028933,0.2061,83394.0,83393.0,0.1199237]
[1741553029743,0.2121,83394.0,83393.0,0.1199237]
[1741553030937,0.1199266,83391.0,83390.0,0.00017985]
[1741553031238,0.2720618,83394.0,83390.0,0.00017985]
[1741553031433,0.197,83392.0,83390.0,0.00017985]
[1741553031637,0.197,83392.0,83390.0,0.21600745]
[1741553032138,0.007,83391.0,83390.0,0.21700745]
[1741553032539,0.203,83391.0,83390.0,0.21700745]
[1741553032739,0.203,83391.0,83390.0,0.21700785]
[1741553032942,0.196,83391.0,83390.0,0.21600785]
[1741553033133,0.196,83391.0,83390.0,0.21700785]
[1741553033441,0.196,83391.0,83390.0,0.31420785]
[1741553034632,0.3211,83402.0,83397.0,0.1199179]
[1741553034831,0.54794,83398.0,83397.0,0.1199179]
[1741553035238,0.4611,83398.0,83397.0,0.1199179]
[1741553035536,0.54794,83398.0,83397.0,0.05238614]
[1741553035735,0.54794,83398.0,83396.0,0.0955]
[1741553035941,0.54794,83398.0,83397.0,0.0972]
[1741553036136,0.54794,83398.0,83397.0,0.05237462]
[1741553036344,0.55494,83398.0,83397.0,0.05237462]
[1741553037042,0.65294,83398.0,83397.0,0.05237462]
[1741553037630,0.65294,83398.0,83397.0,0.14787462]
[1741553037842,0.29214,83398.0,83397.0,0.14787462]
[1741553038233,0.29214,83398.0,83391.0,0.00148]
[1741553038234,0.65294,83398.0,83391.0,0.00148]
[1741553038545,0.1199266,83391.0,83390.0,0.00017985]
[1741553038737,0.2067666,83391.0,83390.0,0.00017985]
[1741553039144,0.5675666,83391.0,83390.0,0.00017985]
[1741553039439,0.64804,83391.0,83390.0,0.00017985]
[1741553040450,0.7679666,83391.0,83390.0,0.00017985]
[1741553040646,0.64804,83391.0,83390.0,0.00017985]
[1741553040947,0.28724,83391.0,83390.0,0.21710785]
[1741553041148,0.28724,83391.0,83390.0,0.32150785]
[1741553041743,0.007,83391.0,83390.0,0.32150785]
[1741553041944,0.09384,83391.0,83390.0,0.42090785]
[1741553042146,0.00885313,83399.0,83398.0,0.1199165]
[1741553042341,0.30474,83402.0,83401.0,0.1199122]
[1741553042738,0.31789778,83402.0,83401.0,0.1199122]
[1741553043245,0.31789778,83402.0,83401.0,0.3205122]
[1741553044048,0.32678277,83402.0,83401.0,0.3205122]
[1741553044641,0.32678277,83402.0,83401.0,0.3215122]
[1741553044642,0.33278277,83402.0,83401.0,0.3215122]
[1741553045448,0.52918277,83402.0,83401.0,0.3215122]
[1741553045651,0.31128277,83402.0,83401.0,0.3215122]
[1741553045947,0.21238277,83402.0,83401.0,0.3215122]
[1741553046738,0.21238277,83402.0,83401.0,0.6823122]
[1741553047746,0.20638277,83402.0,83401.0,0.6813122]
[1741553047958,0.11588277,83402.0,83401.0,0.6823122]
[1741553048540,0.10888277,83402.0,83401.0,0.6823122]
[1741553048743,0.11588277,83402.0,83401.0,0.6823122]
[1741553048951,0.11588277,83402.0,83401.0,0.61479292]
[1741553050855,0.02904277,83402.0,83401.0,0.61479292]
[1741553051051,5e-08,83406.0,83401.0,0.5624]
[1741553051345,5e-08,83406.0,83405.0,0.1199064]
[1741553051947,5e-08,83406.0,83405.0,0.3229064]
[1741553052153,5e-08,83406.0,83405.0,0.33597699]
[1741553052550,5e-08,83406.0,83405.0,0.48597699]
[1741553052947,0.22437692,83431.0,83430.0,0.1198705]
[1741553053151,0.21128,83431.0,83430.0,0.06806898]
[1741553053654,0.22016842,83431.0,83430.0,0.06806898]
[1741553054047,0.22016842,83431.0,83430.0,0.27396898]
[1741553055466,0.24010471,83431.0,83430.0,0.27496898]
[1741553056262,0.22716842,83431.0,83430.0,0.27496898]
[1741553057449,0.42796842,83431.0,83430.0,0.27496898]
[1741553061454,0.32826842,83431.0,83430.0,0.27496898]
[1741553061757,0.32126842,83431.0,83430.0,0.27396898]
[1741553065160,0.32326842,83431.0,83430.0,0.27396898]
[1741553067858,0.32326842,83431.0,83428.0,0.420736]
[1741553067859,0.1198719,83429.0,83428.0,0.3608]
[1741553068058,0.08672,83429.0,83428.0,0.29329674]
[1741553068455,0.19232,83429.0,83428.0,0.29329674]
[1741553068765,0.19232,83429.0,83428.0,0.41317014]
[1741553068766,0.29022,83429.0,83428.0,0.41317014]
[1741553068959,0.29022,83429.0,83422.0,0.00017985]
[1741553069355,0.3608,83426.0,83422.0,0.12006145]
[1741553069663,0.2025,83425.0,83424.0,0.1198788]
[1741553069963,0.2025,83425.0,83422.0,0.12006115]
[1741553070163,0.2025,83425.0,83423.0,0.1198799]
[1741553070471,0.28922,83425.0,83424.0,0.1198791]
[1741553070961,0.28922,83425.0,83424.0,0.3184791]
[1741553071466,0.28922,83425.0,83422.0,0.00117985]
[1741553071664,0.3608,83424.0,83422.0,0.12106145]
[1741553071861,0.4806806,83423.0,83422.0,0.00017985]
[1741553072053,0.4806806,83423.0,83394.0,0.3608]
[1741553072054,0.1198858,83420.0,83415.0,0.1198912]
[1741553072258,0.19152,83419.0,83416.0,0.1198906]
[1741553072464,0.19152,83419.0,83416.0,0.2397807]
[1741553072659,0.1987,83418.0,83416.0,0.1198901]
[1741553072860,0.1977,83418.0,83416.0,0.1198901]
[1741553073161,0.1051,83417.0,83416.0,0.1198901]
[1741553073563,0.2075,83417.0,83416.0,0.1198901]
[1741553074466,0.2075,83417.0,83416.0,0.1208901]
[1741553074968,0.1051,83417.0,83416.0,0.2206901]
[1741553075159,0.2136,83417.0,83416.0,0.2206901]
[1741553076268,0.2136,83417.0,83416.0,0.2196901]
[1741553076666,0.1091,83417.0,83416.0,0.2196901]
[1741553076868,0.004,83417.0,83416.0,0.2196901]
[1741553078263,0.004,83417.0,83416.0,0.2206901]
[1741553079169,0.004,83417.0,83416.0,0.2196901]
[1741553080871,0.22084842,83431.0,83430.0,0.1198705]
[1741553081067,0.22016842,83431.0,83430.0,0.1198705]
[1741553082268,0.22016842,83431.0,83430.0,0.2191705]
[1741553082573,0.21528,83431.0,83430.0,0.2191705]
[1741553082776,0.31938,83431.0,83430.0,0.2191705]
[1741553083072,0.31938,83431.0,83430.0,0.2181705]
[1741553083073,0.21128,83431.0,83430.0,0.2181705]
[1741553083269,0.170916,83431.0,83430.0,0.2191705]
[1741553083470,0.00017985,83439.0,83438.0,0.119859]
[1741553083771,0.00017985,83439.0,83438.0,0.480659]
[1741553085481,0.00017985,83439.0,83438.0,0.41317107]
[1741553085675,0.10027985,83439.0,83438.0,0.41317107]
[1741553085863,0.10027985,83439.0,83438.0,0.41417107]
[1741553086466,0.10027985,83439.0,83438.0,0.62047107]
[1741553089379,0.10027985,83439.0,83438.0,0.221559]
[1741553089970,0.10027985,83439.0,83438.0,0.2037]
[1741553090172,0.22013745,83439.0,83438.0,0.1017]
[1741553090373,0.10027985,83439.0,83438.0,0.221559]
[1741553091174,0.22013745,83439.0,83438.0,0.001]
[1741553092569,0.10027985,83439.0,83438.0,0.120859]
[1741553093578,0.18691985,83439.0,83438.0,0.120859]
[1741553095277,0.18691985,83439.0,83438.0,0.0533628]
[1741553095679,0.18691985,83439.0,83438.0,0.119859]
[1741553096876,0.18691985,83439.0,83436.0,0.1198604]
[1741553096877,0.18691985,83439.0,83437.0,0.1198603]
[1741553097078,0.1007,83438.0,83437.0,0.1198603]
[1741553097275,0.1007,83438.0,83437.0,0.1198604]
[1741553097477,0.2064,83438.0,83437.0,0.1198604]
[1741553099082,0.2064,83438.0,83437.0,0.1208604]
[1741553100084,0.1188633,83435.0,83434.0,0.1027]
[1741553100273,0.0599309,83436.0,83427.0,0.1198736]
[1741553100474,0.1198691,83431.0,83413.0,0.00179834]
[1741553100679,0.1198691,83431.0,83414.0,0.1002]
[1741553100680,0.19882545,83423.0,83414.0,0.1002]
[1741553100983,0.1198885,83418.0,83414.0,0.1002]
[1741553101180,0.1198921,83415.0,83414.0,0.1002]
[1741553101482,0.2489852,83417.0,83413.0,0.00179834]
[1741553101483,0.1198935,83414.0,83413.0,0.00179834]
[1741553101688,0.0589495,83411.0,83406.0,0.00017985]
[1741553101878,0.39654,83410.0,83409.0,0.1198993]
[1741553102274,0.39654,83410.0,83406.0,0.00017985]
[1741553102481,0.39654,83410.0,83396.0,0.0977]
[1741553102683,0.3608,83401.0,83400.0,0.1199136]
[1741553102878,0.4474,83401.0,83400.0,0.1199136]
[1741553103480,0.0866,83401.0,83400.0,0.1199136]
[1741553104383,0.09934846,83401.0,83400.0,0.1199136]
[1741553104979,0.10034846,83401.0,83400.0,0.1199136]
[1741553105475,0.10034846,83401.0,83400.0,0.3303136]
[1741553105788,0.10034846,83401.0,83400.0,0.3313136]
[1741553105984,0.0876,83401.0,83400.0,0.3313136]
[1741553106383,0.0866,83401.0,83400.0,0.3303136]
[1741553106581,0.0876,83401.0,83400.0,0.3303136]
[1741553107581,0.001,83401.0,83400.0,0.3303136]
[1741553108000,0.2112,83403.0,83400.0,0.2104]
[1741553108183,0.2112,83403.0,83402.0,0.1199107]
[1741553109488,0.1199122,83401.0,83400.0,0.1064]
[1741553109694,0.1199151,83399.0,83398.0,0.00148]
[1741553109878,0.4207567,83401.0,83388.0,0.36259868]
[1741553109879,0.1199237,83393.0,83390.0,0.1055]
[1741553110086,0.2065237,83393.0,83388.0,0.36259868]
[1741553110287,0.2065237,83393.0,83388.0,0.00179868]
[1741553110991,0.4097237,83393.0,83388.0,0.00179868]
[1741553111379,0.4087237,83393.0,83388.0,0.00179868]
[1741553111585,0.41784524,83393.0,83388.0,0.00179868]
[1741553111781,0.41784524,83393.0,83389.0,0.1199284]
[1741553111987,0.41784524,83393.0,83367.0,0.00179934]
[1741553111988,0.58551679,83393.0,83367.0,0.00179934]
[1741553112293,0.3598,83368.0,83343.0,0.00179985]
[1741553112594,0.0599679,83385.0,83343.0,0.00179985]
[1741553112595,0.1199942,83344.0,83343.0,0.00179985]
[1741553112886,0.3578374,83344.0,83336.0,0.1200046]
[1741553113090,0.1973,83343.0,83335.0,0.00017998]
[1741553113290,0.3608,83336.0,83330.0,0.0999]
[1741553113491,0.0866,83335.0,83330.0,0.0999]
[1741553113689,0.2839,83335.0,83330.0,0.0999]
[1741553113893,0.2839,83335.0,83331.0,0.1008]
[1741553114185,0.1200131,83331.0,83324.0,0.1200224]
[1741553114390,0.2023,83330.0,83324.0,0.1200224]
[1741553114590,0.0866,83329.0,83325.0,0.1057]
[1741553114795,0.3608,83326.0,83325.0,0.1057]
[1741553115089,0.3588,83326.0,83325.0,0.1057]
[1741553115285,0.0866,83329.0,83328.0,0.1200172]
[1741553115797,0.00887927,83343.0,83335.0,0.1200072]
[1741553116093,0.0866,83342.0,83335.0,0.1200072]
[1741553116786,0.0866,83342.0,83335.0,0.2257072]
[1741553116985,0.44761998,83336.0,83335.0,0.2257072]
[1741553117189,0.08681998,83336.0,83335.0,0.2257072]
[1741553117390,0.08681998,83336.0,83335.0,0.5865072]
[1741553117693,0.08681998,83336.0,83335.0,0.2257072]
[1741553120592,0.08881998,83336.0,83335.0,0.2257072]
[1741553121300,0.00887927,83343.0,83335.0,0.1057]
[1741553121599,0.3608,83319.0,83247.0,0.2177]
[1741553121790,0.01,83338.0,83247.0,0.2177]
[1741553121791,0.19882545,83280.0,83270.0,0.1018]
[1741553121995,0.7216,83271.0,83270.0,0.1018]
[1741553122196,0.7216,83271.0,83270.0,0.2219008]
[1741553122499,0.7206,83271.0,83270.0,0.1018]
[1741553123313,0.7206,83271.0,83270.0,0.2219008]
[1741553123508,0.7206,83271.0,83270.0,0.1018]
[1741553123815,0.7206,83271.0,83262.0,0.00018011]
[1741553124111,0.3598,83263.0,83262.0,0.12029251]
[1741553124316,0.3598,83263.0,83262.0,0.00018011]
[1741553124511,0.3598,83263.0,83262.0,0.12029251]
[1741553125017,0.3598,83263.0,83262.0,0.12529251]
[1741553125215,0.3598,83263.0,83262.0,0.00518011]
[1741553125419,0.4799109,83263.0,83262.0,0.00518011]
[1741553125616,0.0600575,83261.0,83256.0,0.1018]
[1741553125804,0.4809168,83259.0,83248.0,0.0600659]
[1741553126010,0.3608,83249.0,83248.0,0.0600659]
[1741553126205,0.3608,83249.0,83248.0,0.1801985]
[1741553126916,0.3568,83249.0,83248.0,0.1801985]
[1741553128308,0.3578,83249.0,83248.0,0.1841985]
[1741553130116,0.3568,83249.0,83248.0,0.1711985]
[1741553130711,0.3568,83249.0,83248.0,0.2759985]
[1741553131221,0.00018011,83257.0,83256.0,0.120121]
[1741553131420,0.00018011,83257.0,83256.0,0.206841]
[1741553132010,0.00018011,83257.0,83256.0,0.356841]
[1741553132011,1e-08,83257.0,83256.0,0.356841]
[1741553132211,1e-08,83257.0,83256.0,0.717641]
[1741553138323,1e-08,83257.0,83256.0,0.630921]
[1741553138521,1e-08,83257.0,83256.0,0.303141]
[1741553138924,1e-08,83257.0,83256.0,0.453141]
[1741553139624,1e-08,83257.0,83256.0,0.813941]
[1741553140127,0.1028,83278.0,83256.0,0.69382]
[1741553140314,0.1028,83278.0,83277.0,0.1200907]
[1741553140522,0.3273893,83278.0,83277.0,0.2068107]
[1741553141124,0.2073,83278.0,83277.0,0.1200907]
[1741553141917,0.2073,83278.0,83277.0,0.2225907]
[1741553148732,0.20717364,83278.0,83277.0,0.2225907]
[1741553148932,0.13313744,83278.0,83277.0,0.1200907]
[1741553149134,0.00018011,83286.0,83285.0,0.1200792]
[1741553149432,0.3608,83319.0,83318.0,0.1200316]
[1741553149729,0.060026,83304.0,83303.0,0.1200514]
[1741553149935,0.80832,83304.0,83303.0,0.1200532]
[1741553150123,0.6343738,83304.0,83303.0,0.1200532]
[1741553150327,0.205,83307.0,83306.0,0.1200489]
[1741553150328,0.1031,83307.0,83306.0,0.1200489]
[1741553150527,0.1031,83307.0,83302.0,0.18382]
[1741553150528,0.1200532,83303.0,83302.0,0.08672]
[1741553150724,0.0600295,83299.0,83295.0,0.00018011]
[1741553150934,0.1200828,83284.0,83283.0,0.1200809]